[Event "Late-Titled-Tuesday-Blitz-July-09-2024"]
[Site "Chess.com"]
[Date "2024.07.09"]
[Round "7"]
[White "Payyappat"]
[Black "leotobares"]
[Result "1-0"]
[WhiteElo "2418"]
[BlackElo "2295"]
[TimeControl "180+1"]
[EndTime "15:16:04 PDT"]
[Termination "Payyappat won by checkmate"]

1. e4 {[%clk 0:02:59.9]} 1... c5 {[%clk 0:02:59.5]} 2. Nf3 {[%clk 0:02:59.2]}
2... d6 {[%clk 0:02:58.8]} 3. d4 {[%clk 0:03:00.1]} 3... cxd4 {[%clk 0:02:58.7]}
4. Nxd4 {[%clk 0:03:01]} 4... Nf6 {[%clk 0:02:58.9]} 5. Nc3 {[%clk 0:03:01.9]}
5... g6 {[%clk 0:02:58.8]} 6. f4 {[%clk 0:03:01]} 6... Nc6 {[%clk 0:02:56.7]} 7.
Be2 {[%clk 0:02:59.9]} 7... Bg7 {[%clk 0:02:55.6]} 8. Be3 {[%clk 0:03:00.4]}
8... O-O {[%clk 0:02:54.5]} 9. Qd3 {[%clk 0:03:00]} 9... Bd7 {[%clk 0:02:49.5]}
10. O-O {[%clk 0:02:58.7]} 10... Rc8 {[%clk 0:02:47.4]} 11. Bf3 {[%clk
0:02:55.3]} 11... e5 {[%clk 0:02:36.5]} 12. Ndb5 {[%clk 0:02:53.9]} 12... exf4
{[%clk 0:02:34.4]} 13. Bxf4 {[%clk 0:02:54.8]} 13... Ne5 {[%clk 0:02:31.3]} 14.
Qxd6 {[%clk 0:02:52.2]} 14... Nxf3+ {[%clk 0:02:14.1]} 15. Rxf3 {[%clk
0:02:27.7]} 15... Bxb5 {[%clk 0:02:13.1]} 16. Nxb5 {[%clk 0:02:26.5]} 16... Rxc2
{[%clk 0:02:10.4]} 17. e5 {[%clk 0:02:12]} 17... Nh5 {[%clk 0:02:05.4]} 18. Rd1
{[%clk 0:02:05.9]} 18... Qa5 {[%clk 0:01:57.6]} 19. Nd4 {[%clk 0:01:47.6]} 19...
Rxb2 {[%clk 0:01:44.8]} 20. e6 {[%clk 0:01:43.5]} 20... Nxf4 {[%clk 0:01:13.4]}
21. Rxf4 {[%clk 0:00:43.8]} 21... Qxa2 {[%clk 0:00:52]} 22. e7 {[%clk
0:00:40.6]} 22... Bxd4+ {[%clk 0:00:42.3]} 23. Kh1 {[%clk 0:00:19.9]} 23... Re8
{[%clk 0:00:40.5]} 24. Qd7 {[%clk 0:00:19.5]} 24... Rxe7 {[%clk 0:00:28.3]} 25.
Qxe7 {[%clk 0:00:20]} 25... Rxg2 {[%clk 0:00:15.1]} 26. Qd8+ {[%clk 0:00:17.4]}
26... Kg7 {[%clk 0:00:14.2]} 27. Qxd4+ {[%clk 0:00:17.4]} 27... Kh6 {[%clk
0:00:12.5]} 28. Rh4+ {[%clk 0:00:17.1]} 28... Kg5 {[%clk 0:00:11.1]} 29. Qf4#
{[%clk 0:00:17.6]} 1-0

[Event "Late-Titled-Tuesday-Blitz-July-09-2024"]
[Site "Chess.com"]
[Date "2024.07.09"]
[Round "7"]
[White "HaryKane"]
[Black "c63_amg"]
[Result "1-0"]
[WhiteElo "2601"]
[BlackElo "2768"]
[TimeControl "180+1"]
[EndTime "15:16:07 PDT"]
[Termination "HaryKane won by resignation"]

1. d4 {[%clk 0:03:00.9]} 1... Nf6 {[%clk 0:02:59.8]} 2. c4 {[%clk 0:02:59.5]}
2... e6 {[%clk 0:03:00.3]} 3. Nc3 {[%clk 0:02:56.9]} 3... Bb4 {[%clk 0:03:00.9]}
4. Nf3 {[%clk 0:02:53.9]} 4... O-O {[%clk 0:03:01.5]} 5. e3 {[%clk 0:02:53.8]}
5... b6 {[%clk 0:03:01.5]} 6. Bd3 {[%clk 0:02:53.4]} 6... Bb7 {[%clk 0:03:02.2]}
7. O-O {[%clk 0:02:53.8]} 7... Bxc3 {[%clk 0:03:02.9]} 8. bxc3 {[%clk
0:02:53.8]} 8... Ne4 {[%clk 0:03:03.8]} 9. Nd2 {[%clk 0:02:52.4]} 9... f5 {[%clk
0:03:01.9]} 10. Qc2 {[%clk 0:02:51.3]} 10... Qh4 {[%clk 0:03:01]} 11. f3 {[%clk
0:02:46.8]} 11... Ng5 {[%clk 0:03:00.8]} 12. Ba3 {[%clk 0:02:31]} 12... d6
{[%clk 0:03:00.5]} 13. c5 {[%clk 0:02:30.6]} 13... dxc5 {[%clk 0:02:55.3]} 14.
dxc5 {[%clk 0:02:30.7]} 14... Rf6 {[%clk 0:02:55.1]} 15. Rf2 {[%clk 0:02:15]}
15... Rh6 {[%clk 0:02:43.3]} 16. Nf1 {[%clk 0:02:13]} 16... Nd7 {[%clk
0:02:33.3]} 17. Rd1 {[%clk 0:02:03.9]} 17... Ne5 {[%clk 0:02:18.6]} 18. Be2
{[%clk 0:01:58]} 18... Rg6 {[%clk 0:02:14.2]} 19. Ng3 {[%clk 0:01:50.3]} 19...
Rh6 {[%clk 0:02:14.8]} 20. Nf1 {[%clk 0:01:48.4]} 20... Rg6 {[%clk 0:01:27.6]}
21. Ng3 {[%clk 0:01:34.7]} 21... Nc4 {[%clk 0:01:28.2]} 22. Rd4 {[%clk
0:01:13.7]} 22... Nxa3 {[%clk 0:01:23.3]} 23. Qa4 {[%clk 0:01:06.1]} 23... Qh6
{[%clk 0:00:50.1]} 24. c6 {[%clk 0:01:04.5]} 24... Bxc6 {[%clk 0:00:39.3]} 25.
Qxc6 {[%clk 0:01:01.9]} 25... Rf8 {[%clk 0:00:40.2]} 26. Qxc7 {[%clk 0:00:55.2]}
26... Nf7 {[%clk 0:00:37.3]} 27. f4 {[%clk 0:00:49.5]} 27... e5 {[%clk
0:00:27.7]} 28. Nxf5 {[%clk 0:00:43]} 28... exd4 {[%clk 0:00:22.6]} 29. Nxh6+
{[%clk 0:00:41.8]} 29... Nxh6 {[%clk 0:00:21.7]} 30. cxd4 {[%clk 0:00:38]} 30...
Nf5 {[%clk 0:00:22.3]} 31. Qc3 {[%clk 0:00:33.4]} 31... Nb1 {[%clk 0:00:22.5]}
32. Qb3+ {[%clk 0:00:33.6]} 32... Kh8 {[%clk 0:00:22.4]} 33. Qxb1 {[%clk
0:00:33.3]} 33... Nxe3 {[%clk 0:00:23.1]} 34. Qe4 {[%clk 0:00:29.3]} 34... Nf5
{[%clk 0:00:20.6]} 35. Bd3 {[%clk 0:00:26.3]} 35... Rgf6 {[%clk 0:00:21.3]} 36.
Re2 {[%clk 0:00:24.5]} 36... g6 {[%clk 0:00:19.5]} 37. Qe5 {[%clk 0:00:21.8]}
37... Kg7 {[%clk 0:00:18.6]} 38. Bc4 {[%clk 0:00:20.4]} 38... Kh6 {[%clk
0:00:18.7]} 39. g4 {[%clk 0:00:20.2]} 1-0

[Event "Late-Titled-Tuesday-Blitz-July-09-2024"]
[Site "Chess.com"]
[Date "2024.07.09"]
[Round "7"]
[White "anderson2361"]
[Black "AsaHoffmann"]
[Result "1-0"]
[WhiteElo "2299"]
[BlackElo "2386"]
[TimeControl "180+1"]
[EndTime "15:16:11 PDT"]
[Termination "anderson2361 won by checkmate"]

1. c4 {[%clk 0:03:00.9]} 1... Nf6 {[%clk 0:02:58.5]} 2. Nf3 {[%clk 0:03:01.1]}
2... d6 {[%clk 0:02:57.8]} 3. Nc3 {[%clk 0:02:58.4]} 3... e5 {[%clk 0:02:55.6]}
4. e4 {[%clk 0:02:58.7]} 4... c6 {[%clk 0:02:55.1]} 5. d4 {[%clk 0:02:57.8]}
5... Qc7 {[%clk 0:02:54.4]} 6. g3 {[%clk 0:02:54.9]} 6... Bg4 {[%clk 0:02:53.3]}
7. Bg2 {[%clk 0:02:54.2]} 7... Nbd7 {[%clk 0:02:53.1]} 8. O-O {[%clk 0:02:54]}
8... Be7 {[%clk 0:02:52.6]} 9. Be3 {[%clk 0:02:54]} 9... O-O {[%clk 0:02:52.2]}
10. h3 {[%clk 0:02:51.6]} 10... Bh5 {[%clk 0:02:49.3]} 11. Qd3 {[%clk
0:02:41.6]} 11... Rfe8 {[%clk 0:02:48.5]} 12. g4 {[%clk 0:02:32.2]} 12... Bg6
{[%clk 0:02:48]} 13. Nh4 {[%clk 0:02:27.8]} 13... Bxe4 {[%clk 0:02:39.8]} 14.
Nxe4 {[%clk 0:02:21.9]} 14... Nxe4 {[%clk 0:02:39.5]} 15. Bxe4 {[%clk
0:02:22.6]} 15... Bxh4 {[%clk 0:02:38.4]} 16. Bxh7+ {[%clk 0:02:23.2]} 16... Kh8
{[%clk 0:02:37.6]} 17. Bf5 {[%clk 0:02:22.5]} 17... g6 {[%clk 0:02:28.3]} 18.
Be4 {[%clk 0:02:04.4]} 18... exd4 {[%clk 0:02:24.9]} 19. Bxd4+ {[%clk
0:02:05.3]} 19... Bf6 {[%clk 0:02:24.4]} 20. Qc3 {[%clk 0:01:54.8]} 20... Qd8
{[%clk 0:02:17]} 21. Bg2 {[%clk 0:01:51.7]} 21... Bxd4 {[%clk 0:02:15.8]} 22.
Qxd4+ {[%clk 0:01:52.6]} 22... Qf6 {[%clk 0:02:15.6]} 23. Rfd1 {[%clk
0:01:52.4]} 23... Qxd4 {[%clk 0:02:14.3]} 24. Rxd4 {[%clk 0:01:53.3]} 24... Re6
{[%clk 0:02:13.2]} 25. Rad1 {[%clk 0:01:52.4]} 25... Nc5 {[%clk 0:02:08.3]} 26.
Rxd6 {[%clk 0:01:43.7]} 26... Rae8 {[%clk 0:02:07.5]} 27. b4 {[%clk 0:01:38.2]}
27... Na4 {[%clk 0:02:06]} 28. b5 {[%clk 0:01:33]} 28... Nb2 {[%clk 0:02:03.5]}
29. Rxe6 {[%clk 0:01:31.9]} 29... Rxe6 {[%clk 0:02:02.9]} 30. Rd7 {[%clk
0:01:32.3]} 30... Nxc4 {[%clk 0:01:58.5]} 31. Rxf7 {[%clk 0:01:17.3]} 31... cxb5
{[%clk 0:01:56.9]} 32. Rxb7 {[%clk 0:01:17.4]} 32... a6 {[%clk 0:01:56.4]} 33.
Bd5 {[%clk 0:01:12.7]} 33... Re1+ {[%clk 0:01:54.9]} 34. Kg2 {[%clk 0:01:13.2]}
34... Ne5 {[%clk 0:01:49.3]} 35. Rb6 {[%clk 0:01:11.5]} 35... Rd1 {[%clk
0:01:45]} 36. Be4 {[%clk 0:01:09.7]} 36... Rd2 {[%clk 0:01:42.5]} 37. Rxa6
{[%clk 0:01:08.1]} 37... g5 {[%clk 0:01:40.8]} 38. Kg3 {[%clk 0:01:02.9]} 38...
Rd4 {[%clk 0:01:39.8]} 39. f3 {[%clk 0:01:02.6]} 39... Kg7 {[%clk 0:01:34.3]}
40. h4 {[%clk 0:01:02.7]} 40... gxh4+ {[%clk 0:01:33.5]} 41. Kxh4 {[%clk
0:01:03.6]} 41... Nc4 {[%clk 0:01:30]} 42. Kg5 {[%clk 0:01:00.3]} 42... Nd2
{[%clk 0:01:28.6]} 43. Ra7+ {[%clk 0:00:59.1]} 43... Kf8 {[%clk 0:01:28.2]} 44.
Bc6 {[%clk 0:00:56.5]} 44... b4 {[%clk 0:01:25.4]} 45. f4 {[%clk 0:00:54.1]}
45... Rc4 {[%clk 0:01:24]} 46. Bd7 {[%clk 0:00:48.9]} 46... Rd4 {[%clk
0:01:21.3]} 47. Be6 {[%clk 0:00:46.7]} 47... Ne4+ {[%clk 0:01:19.7]} 48. Kg6
{[%clk 0:00:46]} 48... Ke8 {[%clk 0:01:19.3]} 49. f5 {[%clk 0:00:45.6]} 49...
Nd6 {[%clk 0:01:18.1]} 50. g5 {[%clk 0:00:44.2]} 50... Nb5 {[%clk 0:01:14.8]}
51. Ra8+ {[%clk 0:00:41.9]} 51... Ke7 {[%clk 0:01:14.5]} 52. Bb3 {[%clk
0:00:39.5]} 52... Nd6 {[%clk 0:01:13.7]} 53. f6+ {[%clk 0:00:39.6]} 53... Kd7
{[%clk 0:01:13.4]} 54. Ra7+ {[%clk 0:00:39.5]} 54... Kc6 {[%clk 0:01:13]} 55. f7
{[%clk 0:00:38.4]} 55... Rf4 {[%clk 0:01:12.7]} 56. Kg7 {[%clk 0:00:38.2]} 56...
Rf5 {[%clk 0:01:11.7]} 57. f8=Q {[%clk 0:00:35.4]} 57... Rxg5+ {[%clk
0:01:10.9]} 58. Kh6 {[%clk 0:00:35.2]} 58... Rf5 {[%clk 0:01:10.6]} 59. Qa8+
{[%clk 0:00:33.1]} 59... Kc5 {[%clk 0:01:09.9]} 60. Ra5+ {[%clk 0:00:33.6]}
60... Kd4 {[%clk 0:01:09]} 61. Rxf5 {[%clk 0:00:34.2]} 61... Nxf5+ {[%clk
0:01:08.9]} 62. Kg5 {[%clk 0:00:35.1]} 62... Ne3 {[%clk 0:01:08.8]} 63. Qd8+
{[%clk 0:00:34]} 63... Kc3 {[%clk 0:01:08.3]} 64. Qc7+ {[%clk 0:00:33.8]} 64...
Kb2 {[%clk 0:01:07.5]} 65. Qe5+ {[%clk 0:00:33.4]} 65... Ka3 {[%clk 0:01:06.4]}
66. Qxe3 {[%clk 0:00:34.3]} 66... Kb2 {[%clk 0:01:05.4]} 67. Qd2+ {[%clk
0:00:33.2]} 67... Ka3 {[%clk 0:01:05.1]} 68. Qc1# {[%clk 0:00:33.2]} 1-0

[Event "Late-Titled-Tuesday-Blitz-July-09-2024"]
[Site "Chess.com"]
[Date "2024.07.09"]
[Round "7"]
[White "ural58"]
[Black "Alexander_Khlebovich"]
[Result "0-1"]
[WhiteElo "2468"]
[BlackElo "2784"]
[TimeControl "180+1"]
[EndTime "15:16:13 PDT"]
[Termination "Alexander_Khlebovich won by resignation"]

1. e4 {[%clk 0:03:00.9]} 1... c5 {[%clk 0:03:00]} 2. b3 {[%clk 0:02:57]} 2... g6
{[%clk 0:02:57.9]} 3. Bb2 {[%clk 0:02:52.7]} 3... Nf6 {[%clk 0:02:58.1]} 4. e5
{[%clk 0:02:52.8]} 4... Nd5 {[%clk 0:02:58.2]} 5. Nc3 {[%clk 0:02:52.9]} 5...
Nxc3 {[%clk 0:02:56.1]} 6. Bxc3 {[%clk 0:02:53.3]} 6... Bg7 {[%clk 0:02:56.2]}
7. h4 {[%clk 0:02:53.4]} 7... Nc6 {[%clk 0:02:54.7]} 8. f4 {[%clk 0:02:46.2]}
8... d6 {[%clk 0:02:46.2]} 9. Bb5 {[%clk 0:02:39.4]} 9... dxe5 {[%clk
0:02:45.8]} 10. fxe5 {[%clk 0:02:33.5]} 10... Qd5 {[%clk 0:02:41.2]} 11. Qf3
{[%clk 0:02:32.5]} 11... Be6 {[%clk 0:02:35.4]} 12. O-O-O {[%clk 0:02:15.4]}
12... O-O-O {[%clk 0:02:27.4]} 13. Bxc6 {[%clk 0:02:13.8]} 13... bxc6 {[%clk
0:02:28.1]} 14. Re1 {[%clk 0:02:13.5]} 14... c4 {[%clk 0:02:22.9]} 15. Qf2
{[%clk 0:02:08.6]} 15... Kb7 {[%clk 0:02:17.9]} 16. Nf3 {[%clk 0:02:03.2]} 16...
h6 {[%clk 0:02:06.9]} 17. Rhf1 {[%clk 0:01:27.7]} 17... Rhf8 {[%clk 0:01:59.9]}
18. Qg3 {[%clk 0:00:59.8]} 18... a5 {[%clk 0:01:43.9]} 19. Qf4 {[%clk
0:00:55.6]} 19... a4 {[%clk 0:01:34.8]} 20. bxc4 {[%clk 0:00:51.2]} 20... Qxc4
{[%clk 0:01:33.7]} 21. Qxc4 {[%clk 0:00:49]} 21... Bxc4 {[%clk 0:01:34.6]} 22.
d3 {[%clk 0:00:44.1]} 22... Bxa2 {[%clk 0:01:31.1]} 23. Re4 {[%clk 0:00:43.2]}
23... Ra8 {[%clk 0:01:25.1]} 24. Rb4+ {[%clk 0:00:42.8]} 24... Kc7 {[%clk
0:01:19.6]} 25. Nd2 {[%clk 0:00:40.4]} 25... Bd5 {[%clk 0:01:16.2]} 26. Bd4
{[%clk 0:00:36.4]} 26... Bxg2 {[%clk 0:01:11.7]} 27. Rf2 {[%clk 0:00:36.5]}
27... Bd5 {[%clk 0:01:11.7]} 28. c4 {[%clk 0:00:36.4]} 28... Be6 {[%clk
0:01:09.9]} 29. Kb2 {[%clk 0:00:30.2]} 29... a3+ {[%clk 0:01:07.7]} 30. Ka2
{[%clk 0:00:29.3]} 30... Rfb8 {[%clk 0:01:07.2]} 31. Rxb8 {[%clk 0:00:25.8]}
31... Rxb8 {[%clk 0:01:08.1]} 32. Kxa3 {[%clk 0:00:25.2]} 32... Rd8 {[%clk
0:01:07.6]} 33. Nb3 {[%clk 0:00:23.8]} 33... c5 {[%clk 0:01:01.1]} 34. Bxc5
{[%clk 0:00:20]} 34... Rxd3 {[%clk 0:01:00.8]} 35. Kb4 {[%clk 0:00:20.6]} 35...
Bxe5 {[%clk 0:00:58.9]} 36. Bxe7 {[%clk 0:00:19.4]} 36... Bc3+ {[%clk
0:00:58.7]} 37. Kb5 {[%clk 0:00:17.2]} 37... Be1 {[%clk 0:00:43.8]} 38. Rf1
{[%clk 0:00:10.8]} 38... Rxb3+ {[%clk 0:00:42.2]} 39. Ka4 {[%clk 0:00:10.7]}
39... Rb1 {[%clk 0:00:38.2]} 0-1

[Event "Late-Titled-Tuesday-Blitz-July-09-2024"]
[Site "Chess.com"]
[Date "2024.07.09"]
[Round "7"]
[White "swayamsm"]
[Black "K_A_S_T_O_R"]
[Result "0-1"]
[WhiteElo "2628"]
[BlackElo "2841"]
[TimeControl "180+1"]
[EndTime "15:16:16 PDT"]
[Termination "K_A_S_T_O_R won by resignation"]

1. d4 {[%clk 0:02:54.5]} 1... Nf6 {[%clk 0:02:59.1]} 2. c4 {[%clk 0:02:54.2]}
2... e6 {[%clk 0:02:59.5]} 3. Nc3 {[%clk 0:02:53.6]} 3... Bb4 {[%clk 0:02:59.3]}
4. e3 {[%clk 0:02:54.1]} 4... O-O {[%clk 0:02:58.8]} 5. Ne2 {[%clk 0:02:54.7]}
5... Re8 {[%clk 0:02:58.4]} 6. a3 {[%clk 0:02:55.3]} 6... Bf8 {[%clk 0:02:58.4]}
7. Ng3 {[%clk 0:02:51.5]} 7... d5 {[%clk 0:02:54.7]} 8. Bd3 {[%clk 0:02:49.5]}
8... b6 {[%clk 0:02:48.8]} 9. O-O {[%clk 0:02:44.8]} 9... Bb7 {[%clk 0:02:48.8]}
10. cxd5 {[%clk 0:02:44.7]} 10... exd5 {[%clk 0:02:48.4]} 11. b4 {[%clk
0:02:39]} 11... a6 {[%clk 0:02:42.7]} 12. Qc2 {[%clk 0:02:25.9]} 12... Nbd7
{[%clk 0:02:39.1]} 13. Bd2 {[%clk 0:02:18.2]} 13... c5 {[%clk 0:02:36.8]} 14.
bxc5 {[%clk 0:02:18]} 14... bxc5 {[%clk 0:02:37.3]} 15. dxc5 {[%clk 0:02:15.9]}
15... Nxc5 {[%clk 0:02:37.1]} 16. Nf5 {[%clk 0:02:10.6]} 16... g6 {[%clk
0:02:33.8]} 17. Nd4 {[%clk 0:01:59.3]} 17... Rc8 {[%clk 0:02:33.2]} 18. Rab1
{[%clk 0:01:55]} 18... Qc7 {[%clk 0:02:24.4]} 19. a4 {[%clk 0:01:42.1]} 19...
Bd6 {[%clk 0:02:16]} 20. h3 {[%clk 0:01:41.5]} 20... Qe7 {[%clk 0:02:15.1]} 21.
Rfc1 {[%clk 0:01:38.2]} 21... Nfe4 {[%clk 0:02:11.7]} 22. Nxe4 {[%clk
0:01:34.2]} 22... dxe4 {[%clk 0:02:09.6]} 23. Bf1 {[%clk 0:01:15.5]} 23... Nd3
{[%clk 0:02:03.2]} 24. Bxd3 {[%clk 0:01:15.7]} 24... Rxc2 {[%clk 0:01:47.3]} 25.
Bxc2 {[%clk 0:01:16.6]} 25... Rc8 {[%clk 0:01:46.4]} 26. Bb3 {[%clk 0:01:15.9]}
26... Rxc1+ {[%clk 0:01:44.7]} 27. Rxc1 {[%clk 0:01:16.8]} 27... Qe5 {[%clk
0:01:38.5]} 28. g3 {[%clk 0:01:14.5]} 28... h5 {[%clk 0:01:38.5]} 29. Bc4 {[%clk
0:01:13]} 29... h4 {[%clk 0:01:36.8]} 30. Ne2 {[%clk 0:01:08.5]} 30... hxg3
{[%clk 0:01:36]} 31. Nxg3 {[%clk 0:01:09.1]} 31... Qg5 {[%clk 0:01:33.5]} 32.
Kg2 {[%clk 0:01:04.7]} 32... Kf8 {[%clk 0:01:30]} 33. Be2 {[%clk 0:00:59]} 33...
Qd5 {[%clk 0:01:21.5]} 34. Bc3 {[%clk 0:00:56.3]} 34... Ke7 {[%clk 0:01:17.9]}
35. h4 {[%clk 0:00:53.1]} 35... Qa2 {[%clk 0:01:08.5]} 36. Bd1 {[%clk
0:00:43.6]} 36... Bxg3 {[%clk 0:01:01.7]} 37. Kxg3 {[%clk 0:00:44.5]} 37... Qa3
{[%clk 0:01:02.2]} 38. Rb1 {[%clk 0:00:41.5]} 38... Qxc3 {[%clk 0:00:57.2]} 39.
Rxb7+ {[%clk 0:00:41.6]} 39... Kf8 {[%clk 0:00:57.6]} 40. Bb3 {[%clk 0:00:39.6]}
40... f5 {[%clk 0:00:57.1]} 41. h5 {[%clk 0:00:35.7]} 41... Qe5+ {[%clk
0:00:54.3]} 42. Kh4 {[%clk 0:00:27.7]} 42... Qf6+ {[%clk 0:00:54.2]} 43. Kh3
{[%clk 0:00:26.9]} 43... gxh5 {[%clk 0:00:50.2]} 44. a5 {[%clk 0:00:23]} 44...
Qg5 {[%clk 0:00:49.2]} 45. Rf7+ {[%clk 0:00:21.7]} 45... Ke8 {[%clk 0:00:48.1]}
46. Ra7 {[%clk 0:00:16.2]} 46... f4 {[%clk 0:00:47.8]} 47. Bf7+ {[%clk
0:00:15.5]} 47... Kf8 {[%clk 0:00:45.8]} 48. Be6 {[%clk 0:00:15.7]} 48... fxe3
{[%clk 0:00:44.7]} 49. fxe3 {[%clk 0:00:16.3]} 49... Qxe3+ {[%clk 0:00:44.1]}
50. Kh4 {[%clk 0:00:16.4]} 50... Qxa7 {[%clk 0:00:45]} 0-1

[Event "Late-Titled-Tuesday-Blitz-July-09-2024"]
[Site "Chess.com"]
[Date "2024.07.09"]
[Round "7"]
[White "PhileKhoob"]
[Black "protectiago"]
[Result "1-0"]
[WhiteElo "2381"]
[BlackElo "2165"]
[TimeControl "180+1"]
[EndTime "15:16:16 PDT"]
[Termination "PhileKhoob won on time"]

1. Nf3 {[%clk 0:02:52]} 1... c5 {[%clk 0:02:59.4]} 2. c4 {[%clk 0:02:50.8]} 2...
Nc6 {[%clk 0:02:59.3]} 3. d4 {[%clk 0:02:34.6]} 3... cxd4 {[%clk 0:02:57.6]} 4.
Nxd4 {[%clk 0:02:22.1]} 4... g6 {[%clk 0:02:57.2]} 5. g3 {[%clk 0:01:32.9]} 5...
Bg7 {[%clk 0:02:55.4]} 6. Nc2 {[%clk 0:01:33.4]} 6... Nf6 {[%clk 0:02:53]} 7.
Bg2 {[%clk 0:01:30.8]} 7... O-O {[%clk 0:02:51.6]} 8. Nc3 {[%clk 0:01:28.7]}
8... d6 {[%clk 0:02:25.9]} 9. O-O {[%clk 0:01:26.1]} 9... Be6 {[%clk 0:02:26]}
10. b3 {[%clk 0:01:03.3]} 10... Qd7 {[%clk 0:01:56.3]} 11. Bb2 {[%clk
0:00:37.8]} 11... Bh3 {[%clk 0:01:53.7]} 12. Qd2 {[%clk 0:00:36.8]} 12... Bxg2
{[%clk 0:01:49.8]} 13. Kxg2 {[%clk 0:00:37.6]} 13... Rac8 {[%clk 0:01:09.3]} 14.
Rac1 {[%clk 0:00:33.7]} 14... Rfd8 {[%clk 0:01:07]} 15. Rfd1 {[%clk 0:00:31.4]}
15... a6 {[%clk 0:01:04.3]} 16. Ne3 {[%clk 0:00:26.1]} 16... Ne5 {[%clk
0:00:38.2]} 17. Ncd5 {[%clk 0:00:20.5]} 17... Nxd5 {[%clk 0:00:27.4]} 18. Nxd5
{[%clk 0:00:21.4]} 18... Qe8 {[%clk 0:00:08.9]} 19. f4 {[%clk 0:00:19.1]} 19...
Nc6 {[%clk 0:00:08.4]} 20. e4 {[%clk 0:00:18.6]} 20... b5 {[%clk 0:00:07.9]} 21.
Bxg7 {[%clk 0:00:18.1]} 21... Kxg7 {[%clk 0:00:07.8]} 22. Qb2+ {[%clk
0:00:17.6]} 22... Kg8 {[%clk 0:00:07.1]} 23. h4 {[%clk 0:00:17]} 23... bxc4
{[%clk 0:00:06.8]} 24. Rxc4 {[%clk 0:00:16.5]} 24... Na5 {[%clk 0:00:04.3]} 25.
Rxc8 {[%clk 0:00:16.3]} 25... Rxc8 {[%clk 0:00:04.6]} 26. Rc1 {[%clk 0:00:15.5]}
26... Rxc1 {[%clk 0:00:04]} 27. Qxc1 {[%clk 0:00:16.4]} 27... Nc6 {[%clk
0:00:03.7]} 28. Qc3 {[%clk 0:00:16.4]} 28... f6 {[%clk 0:00:02.1]} 29. Qxc6
{[%clk 0:00:14.7]} 1-0

[Event "Late-Titled-Tuesday-Blitz-July-09-2024"]
[Site "Chess.com"]
[Date "2024.07.09"]
[Round "7"]
[White "SimplyDevina"]
[Black "vova-79"]
[Result "1-0"]
[WhiteElo "2384"]
[BlackElo "2473"]
[TimeControl "180+1"]
[EndTime "15:16:21 PDT"]
[Termination "SimplyDevina won by resignation"]

1. d4 {[%clk 0:03:00.9]} 1... d5 {[%clk 0:02:53.2]} 2. c4 {[%clk 0:02:56.3]}
2... c6 {[%clk 0:02:52.6]} 3. Nc3 {[%clk 0:02:54.6]} 3... Nf6 {[%clk 0:02:52.6]}
4. cxd5 {[%clk 0:02:54.7]} 4... Nxd5 {[%clk 0:02:52.1]} 5. e4 {[%clk 0:02:54.1]}
5... Nb6 {[%clk 0:02:51.5]} 6. Nf3 {[%clk 0:02:48.6]} 6... g6 {[%clk 0:02:43.2]}
7. Be2 {[%clk 0:02:44.9]} 7... Bg7 {[%clk 0:02:41.8]} 8. Be3 {[%clk 0:02:45.4]}
8... O-O {[%clk 0:02:40.4]} 9. h3 {[%clk 0:02:45.8]} 9... Be6 {[%clk 0:02:34.1]}
10. O-O {[%clk 0:02:26.3]} 10... Bc4 {[%clk 0:02:22.7]} 11. Bxc4 {[%clk
0:02:15.8]} 11... Nxc4 {[%clk 0:02:22]} 12. Qe2 {[%clk 0:02:16.5]} 12... Nxe3
{[%clk 0:02:08]} 13. Qxe3 {[%clk 0:02:15.7]} 13... Nd7 {[%clk 0:02:07.2]} 14.
Rfd1 {[%clk 0:02:06.4]} 14... Nb6 {[%clk 0:02:06.1]} 15. Rac1 {[%clk 0:01:56.7]}
15... Rc8 {[%clk 0:01:49.2]} 16. b3 {[%clk 0:01:51.3]} 16... Qd6 {[%clk
0:01:47.3]} 17. e5 {[%clk 0:01:26.7]} 17... Qa3 {[%clk 0:01:40.6]} 18. Nd2
{[%clk 0:01:20.8]} 18... Rcd8 {[%clk 0:01:26.5]} 19. Nc4 {[%clk 0:01:11]} 19...
Qa6 {[%clk 0:01:20]} 20. Nxb6 {[%clk 0:01:02.8]} 20... axb6 {[%clk 0:01:14.5]}
21. d5 {[%clk 0:00:55.9]} 21... Qa5 {[%clk 0:00:46.1]} 22. Qe4 {[%clk
0:00:35.6]} 22... cxd5 {[%clk 0:00:40.5]} 23. Nxd5 {[%clk 0:00:32.8]} 23... e6
{[%clk 0:00:30.5]} 24. Ne7+ {[%clk 0:00:28]} 24... Kh8 {[%clk 0:00:29.6]} 25.
Qxb7 {[%clk 0:00:26.4]} 25... Rxd1+ {[%clk 0:00:23.7]} 26. Rxd1 {[%clk
0:00:26.3]} 26... Qxa2 {[%clk 0:00:19.9]} 27. Qxb6 {[%clk 0:00:25.1]} 27... Bxe5
{[%clk 0:00:19.1]} 28. Nc6 {[%clk 0:00:23.7]} 28... Bf6 {[%clk 0:00:17.9]} 29.
Qc5 {[%clk 0:00:20.1]} 29... Kg7 {[%clk 0:00:17.2]} 30. b4 {[%clk 0:00:18.3]}
30... Qe2 {[%clk 0:00:13.8]} 31. Rc1 {[%clk 0:00:17.8]} 31... Rc8 {[%clk
0:00:08.1]} 32. b5 {[%clk 0:00:18]} 32... Qe4 {[%clk 0:00:06]} 33. Qc4 {[%clk
0:00:14.3]} 33... Qd5 {[%clk 0:00:04.9]} 34. Qxd5 {[%clk 0:00:13.7]} 34... exd5
{[%clk 0:00:05.8]} 35. b6 {[%clk 0:00:13.1]} 35... d4 {[%clk 0:00:03.4]} 36. b7
{[%clk 0:00:12.3]} 1-0